fUSD/lending_fUSD_20251024
["ID","MTS","AMOUNT","RATE_DAILY","PERIOD"]
[392314973,1761330307643,6190.74790873,0.00015,2]
[392314974,1761330307666,6190.74790873,0.00015,2]
[392314975,1761330307690,6190.74790873,0.00015,2]
[392314976,1761330307713,6190.74790873,0.00015,2]
[392314977,1761330307736,6190.74790873,0.00015,2]
[392314978,1761330307759,6190.74790873,0.00015,2]
[392314979,1761330307783,6190.74790873,0.00015,2]
[392314980,1761330307805,6190.74790873,0.00015,2]
[392314981,1761330307835,948366.63851556,0.00015,2]
[392314982,1761330307863,1762244.16565533,0.00015,2]
[392314997,1761330398746,-150.04,0.00018721,2]
[392314998,1761330398784,-150.04,0.00019969,2]
[392314999,1761330398815,-226.4313,0.00020087,2]
[392315000,1761330398862,-146.9774,0.00020087,2]
[392315001,1761330398872,-3.0626,0.00021217,2]
[392315002,1761330398899,-146.9774,0.00021217,2]
[392315003,1761330398914,-3.0626,0.00022465,2]
[392315004,1761330398935,-146.9774,0.00022465,2]
[392315005,1761330398948,-150.04,0.00023713,2]
[392315006,1761330398960,-76.3913,0.00024961,2]
[392315014,1761330474866,33426.56533813,0.00022,4]
[392315015,1761330474892,43893.62667129,0.00022,4]
[392315081,1761330632204,-73.6487,0.00024961,2]
[392315082,1761330632214,-150.04,0.0002621,2]
[392315083,1761330632226,-54.56936071,0.00027458,2]
[392315084,1761330632261,-95.47063929,0.00027458,2]
[392315085,1761330632272,-150.04,0.00028706,2]
[392315086,1761330632283,-150.04,0.00029954,2]
[392315087,1761330632293,-150.04,0.00031202,2]
[392315088,1761330632303,-150.04,0.0003245,2]
[392315089,1761330632312,-150.04,0.00033698,2]
[392315090,1761330632322,-150.0,0.00034228,2]
[392315091,1761330632331,-500.0,0.00034356,2]
[392315092,1761330632341,-150.04,0.00034946,2]
[392315093,1761330632352,-150.0,0.00035218,2]
[392315094,1761330632362,-743.73,0.00035302,30]
[392315095,1761330632373,-351.89,0.00035385,2]
[392315096,1761330632383,-150.0,0.00035408,7]
[392315103,1761330632573,-300.0,0.0003565,7]
[392315105,1761330632582,-152.0,0.00035945,3]
[392315107,1761330632591,-476.35224409,0.0003605,2]
[392315109,1761330632600,-150.04,0.00036194,2]
[392315111,1761330632609,-37.72561981,0.0003631,5]
[392315117,1761330632656,-465.87558096,0.0003631,5]
[392315119,1761330632667,-390.9,0.00036441,2]
[392315121,1761330632677,-351.89,0.00036712,2]
[392315123,1761330632686,-500.0,0.00036808,15]
[392315126,1761330632695,-500.0,0.00036808,15]
[392315128,1761330632704,-500.0,0.00036808,15]
[392315131,1761330632713,-500.0,0.00036808,15]
[392315134,1761330632722,-234.6448414,0.00036808,15]
[392315137,1761330632732,-500.0,0.00036808,15]
[392315140,1761330632741,-228.97107281,0.00036808,15]
[392315144,1761330632756,-271.02892719,0.00036808,15]
[392315148,1761330632766,-216.55829618,0.00036808,15]
[392315153,1761330632799,-283.44170382,0.00036808,15]
[392315155,1761330632809,-500.0,0.00036808,15]
[392315157,1761330632818,-500.0,0.00036808,15]
[392315159,1761330632827,-500.0,0.00036808,15]
[392315161,1761330632837,-54.08944101,0.00036808,15]
[392315163,1761330632848,-347.39315608,0.00036808,15]
[392315164,1761330632857,-192.92153074,0.00036809,15]
[392315165,1761330632867,-74203.80478635,0.0003681,2]
[392315166,1761330632876,-371.681602,0.0003681,2]
[392315167,1761330632885,-7379.76513439,0.0003681,2]
[392315168,1761330632895,-550.0,0.0003681,2]
[392315169,1761330632904,-1023.96654455,0.0003681,2]
[392315170,1761330632914,-1060.51664581,0.0003681,7]
[392315171,1761330632923,-1616.29938423,0.0003681,18]
[392315172,1761330632933,-2489.34534861,0.0003681,2]
[392315173,1761330632943,-5220.898587,0.0003681,2]
[392315174,1761330632952,-6000.0,0.0003681,2]
[392315175,1761330632962,-380.8618433,0.0003681,2]
[392315176,1761330632971,-1491.19156126,0.0003681,2]
[392315177,1761330632980,-415.26956456,0.0003681,2]
[392315179,1761330632991,-398.3005852,0.0003681,2]
[392315181,1761330633002,-234.92007615,0.0003681,2]
[392315183,1761330633011,-475.47831016,0.0003681,7]
[392315185,1761330633020,-5089.26320982,0.0003681,2]
[392315187,1761330633029,-1194.2437363,0.0003681,2]
[392315189,1761330633039,-5284.75625457,0.0003681,14]
[392315191,1761330633048,-571.36892847,0.0003681,2]
[392315193,1761330633057,-150.0,0.0003681,2]
[392315195,1761330633066,-7879.21624934,0.0003681,2]
[392315197,1761330633075,-5278.85311081,0.0003681,14]
[392315199,1761330633084,-1395.72699773,0.0003681,2]
[392315201,1761330633093,-4100.44393757,0.0003681,2]
[392315203,1761330633103,-635.453669,0.0003681,2]
[392315205,1761330633117,-223.16796571,0.0003681,5]
[392315207,1761330633126,-217.84748435,0.0003681,2]
[392315209,1761330633135,-10390.13087896,0.0003681,2]
[392315211,1761330633145,-579.46668592,0.0003681,7]
[392315213,1761330633155,-6404.77244238,0.0003681,5]
[392315215,1761330633164,-2370.80660308,0.0003681,7]
[392315217,1761330633173,-1035.90977184,0.0003681,7]
[392315219,1761330633182,-653.8644846,0.0003681,2]
[392315221,1761330633193,-410.64907156,0.00036873,5]
[392315223,1761330633202,-500.0,0.00036873,5]
[392315225,1761330633214,-348.9,0.00036873,2]
[392315227,1761330633223,-168.0,0.00036888,2]
[392315228,1761330633233,-693.97579585,0.00037105,2]
[392315230,1761330633242,-2000.0,0.000373,2]
[392315232,1761330633251,-178.968,0.00037313,48]
[392315234,1761330633262,-18929.77767637,0.00037313,5]
[392315235,1761330633271,-417.302,0.00037313,48]
[392315236,1761330633280,-196.87269476,0.00037421,5]
[392315237,1761330633289,-150.04,0.00037442,2]
[392315238,1761330633299,-940.58494097,0.00037444,30]
[392315239,1761330633308,-4315.36,0.00037546,2]
[392315241,1761330633318,-157.72,0.00037546,2]
[392315243,1761330633327,-500.0,0.00037652,30]
[392315244,1761330633337,-4458.0,0.00037791,2]
[392315246,1761330633346,-168.0,0.00037872,120]
[392315247,1761330633355,-351.89,0.00038039,2]
[392315248,1761330633364,-797.69,0.00038226,3]
[392315249,1761330633374,-4660.36414,0.0003823,2]
[392315250,1761330633383,-260.0,0.00038234,2]
[392315251,1761330633392,-33170.7581,0.00038236,2]
[392315252,1761330633401,-1000.0,0.00038244,2]
[392315253,1761330633411,-233.7175,0.00038256,2]
[392315254,1761330633420,-3689.5688,0.00038256,2]
[392315255,1761330633429,-1000.0,0.0003833,2]
[392315256,1761330633439,-2500.0,0.0003833,2]
[392315257,1761330633449,-209.22393635,0.00038355,30]
[392315258,1761330633459,-900.0,0.00038356,30]
[392315259,1761330633469,-500.0,0.00038356,30]
[392315260,1761330633478,-163.261218,0.00038356,30]
[392315261,1761330633488,-500.0,0.00038356,30]
[392315262,1761330633497,-243.93799564,0.00038356,30]
[392315263,1761330633507,-500.0,0.00038356,30]
[392315264,1761330633517,-500.0,0.00038356,30]
[392315265,1761330633527,-500.0,0.00038356,30]
[392315266,1761330633536,-500.0,0.00038356,30]
[392315267,1761330633545,-500.0,0.00038356,30]
[392315268,1761330633554,-500.0,0.00038356,30]
[392315269,1761330633564,-500.0,0.00038356,30]
[392315270,1761330633574,-500.0,0.00038356,30]
[392315271,1761330633583,-500.0,0.00038356,30]
[392315272,1761330633593,-500.0,0.00038356,30]
[392315273,1761330633603,-655.09,0.00038356,30]
[392315274,1761330633612,-500.0,0.00038356,30]
[392315275,1761330633622,-500.0,0.00038356,30]
[392315276,1761330633631,-500.0,0.00038356,30]
[392315277,1761330633641,-616.33,0.00038356,30]
[392315278,1761330633651,-500.0,0.00038356,30]
[392315279,1761330633660,-500.0,0.00038356,30]
[392315280,1761330633670,-500.0,0.00038356,30]
[392315281,1761330633680,-500.0,0.00038356,30]
[392315282,1761330633689,-500.0,0.00038356,30]
[392315283,1761330633698,-500.0,0.00038356,30]
[392315284,1761330633708,-500.0,0.00038356,30]
[392315285,1761330633718,-500.0,0.00038356,30]
[392315286,1761330633728,-500.0,0.00038356,30]
[392315287,1761330633738,-626.73026481,0.00038356,30]
[392315288,1761330633748,-500.0,0.00038356,30]
[392315289,1761330633757,-500.0,0.00038356,30]
[392315290,1761330633767,-539.49,0.00038356,30]
[392315291,1761330633777,-500.0,0.00038356,30]
[392315292,1761330633787,-500.0,0.00038356,30]
[392315293,1761330633797,-500.0,0.00038356,30]
[392315294,1761330633807,-500.0,0.00038356,30]
[392315295,1761330633816,-500.0,0.00038356,30]
[392315296,1761330633826,-500.0,0.00038356,30]
[392315297,1761330633835,-500.0,0.00038356,30]
[392315298,1761330633845,-511.46,0.00038356,30]
[392315299,1761330633855,-500.0,0.00038356,30]
[392315300,1761330633866,-500.0,0.00038356,30]
[392315301,1761330633875,-500.0,0.00038356,30]
[392315302,1761330633885,-569.39,0.00038356,30]
[392315303,1761330633895,-500.0,0.00038356,30]
[392315304,1761330633904,-500.0,0.00038356,30]
[392315305,1761330633914,-500.0,0.00038356,30]
[392315306,1761330633925,-500.0,0.00038356,30]
[392315307,1761330633935,-500.0,0.00038356,30]
[392315308,1761330633945,-500.0,0.00038356,30]
[392315309,1761330633955,-500.0,0.00038356,30]
[392315310,1761330633964,-500.0,0.00038356,30]
[392315311,1761330633974,-500.0,0.00038356,30]
[392315312,1761330633983,-500.0,0.00038356,30]
[392315313,1761330633993,-500.0,0.00038356,30]
[392315314,1761330634002,-500.0,0.00038356,30]
[392315315,1761330634011,-225.09197661,0.00038356,30]
[392315316,1761330634021,-500.0,0.00038356,30]
[392315317,1761330634031,-500.0,0.00038356,30]
[392315318,1761330634041,-1408.03,0.00038356,2]
[392315319,1761330634050,-500.0,0.00038356,30]
[392315320,1761330634059,-500.0,0.00038356,30]
[392315321,1761330634069,-500.0,0.00038356,30]
[392315322,1761330634078,-500.0,0.00038356,30]
[392315323,1761330634088,-500.0,0.00038356,30]
[392315324,1761330634097,-229.3365102,0.00038356,30]
[392315325,1761330634107,-500.0,0.00038356,30]
[392315326,1761330634119,-500.0,0.00038356,30]
[392315327,1761330634128,-500.0,0.00038356,30]
[392315328,1761330634137,-500.0,0.00038356,30]
[392315329,1761330634146,-500.0,0.00038356,30]
[392315330,1761330634156,-500.0,0.00038356,30]
[392315331,1761330634165,-535.95,0.00038356,30]
[392315332,1761330634174,-500.0,0.00038356,30]
[392315333,1761330634185,-556.35,0.00038356,30]
[392315334,1761330634195,-506.09,0.00038356,30]
[392315335,1761330634205,-500.0,0.00038356,30]
[392315336,1761330634215,-500.0,0.00038356,30]
[392315337,1761330634224,-500.0,0.00038356,30]
[392315338,1761330634233,-500.0,0.00038356,30]
[392315339,1761330634242,-500.0,0.00038356,30]
[392315340,1761330634251,-500.0,0.00038356,30]
[392315341,1761330634260,-505.31,0.00038356,30]
[392315342,1761330634269,-500.0,0.00038356,30]
[392315343,1761330634277,-500.0,0.00038356,30]
[392315344,1761330634287,-500.0,0.00038356,30]
[392315345,1761330634296,-300.0,0.00038356,2]
[392315346,1761330634305,-500.0,0.00038356,30]
[392315347,1761330634314,-500.0,0.00038356,30]
[392315348,1761330634323,-500.0,0.00038356,30]
[392315349,1761330634332,-500.0,0.00038356,30]
[392315350,1761330634341,-193.02,0.00038356,14]
[392315351,1761330634350,-500.0,0.00038356,30]
[392315352,1761330634359,-500.0,0.00038356,30]
[392315353,1761330634366,-500.0,0.00038356,30]
[392315354,1761330634374,-500.0,0.00038356,30]
[392315355,1761330634382,-500.0,0.00038356,30]
[392315356,1761330634391,-500.0,0.00038356,30]
[392315357,1761330634399,-628.5,0.00038356,30]
[392315358,1761330634409,-500.0,0.00038356,30]
[392315359,1761330634419,-500.0,0.00038356,30]
[392315360,1761330634428,-516.00682886,0.00038356,30]
[392315361,1761330634438,-500.0,0.00038356,30]
[392315362,1761330634447,-500.0,0.00038356,30]
[392315363,1761330634458,-500.0,0.00038356,30]
[392315364,1761330634469,-500.0,0.00038356,30]
[392315365,1761330634479,-500.0,0.00038356,30]
[392315366,1761330634488,-500.0,0.00038356,30]
[392315367,1761330634498,-500.0,0.00038356,30]
[392315368,1761330634508,-500.0,0.00038356,30]
[392315369,1761330634518,-500.0,0.00038356,30]
[392315370,1761330634528,-500.0,0.00038356,30]
[392315371,1761330634538,-500.0,0.00038356,30]
[392315372,1761330634547,-500.0,0.00038356,30]
[392315373,1761330634558,-500.0,0.00038356,30]
[392315374,1761330634568,-500.0,0.00038356,30]
[392315375,1761330634578,-500.0,0.00038356,30]
[392315376,1761330634588,-500.0,0.00038356,30]
[392315377,1761330634598,-500.0,0.00038356,30]
[392315378,1761330634609,-500.0,0.00038356,30]
[392315379,1761330634618,-500.0,0.00038356,30]
[392315380,1761330634628,-500.0,0.00038356,30]
[392315381,1761330634637,-500.0,0.00038356,30]
[392315382,1761330634647,-500.0,0.00038356,30]
[392315383,1761330634656,-500.0,0.00038356,30]
[392315384,1761330634665,-500.0,0.00038356,30]
[392315385,1761330634675,-168.0,0.00038372,2]
[392315386,1761330634685,-500.0,0.00038402,30]
[392315387,1761330634695,-4356.5724594,0.0003842,2]
[392315388,1761330634705,-157.70404283,0.0003843,15]
[392315389,1761330634715,-23432.4097173,0.00038469,2]
[392315390,1761330634724,-3340.2368608,0.00038469,2]
[392315391,1761330634734,-162.89,0.0003851,2]
[392315392,1761330634744,-500.0,0.0003852,30]
[392315393,1761330634754,-500.0,0.0003852,30]
[392315394,1761330634764,-146.69357191,0.0003852,30]
[392315395,1761330638249,-787.6249024,0.0003842,10]
[392315396,1761330638259,-353.30642809,0.0003852,30]
[392315397,1761330638268,-500.0,0.0003852,30]
[392315398,1761330638279,-500.0,0.0003852,30]
[392315399,1761330638289,-524.69,0.0003852,30]
[392315400,1761330638299,-500.0,0.0003852,30]
[392315401,1761330638309,-500.0,0.0003852,30]
[392315402,1761330638319,-500.0,0.0003852,30]
[392315403,1761330638329,-611.13,0.0003852,30]
[392315404,1761330638338,-500.0,0.0003852,30]
[392315405,1761330638348,-500.0,0.0003852,30]
[392315407,1761330638357,-500.0,0.0003852,30]
[392315408,1761330638367,-572.03,0.0003852,30]
[392315410,1761330638377,-500.0,0.0003852,30]
[392315412,1761330638386,-500.0,0.0003852,30]
[392315414,1761330638395,-500.0,0.0003852,30]
[392315415,1761330638404,-151.0,0.0003852,120]
[392315417,1761330638415,-623.99,0.0003852,30]
[392315418,1761330638425,-500.0,0.0003852,30]
[392315419,1761330638434,-28372.54,0.0003852,30]
[392315420,1761330638444,-500.0,0.0003852,30]
[392315421,1761330638453,-500.0,0.0003852,30]
[392315422,1761330638463,-236.654663,0.0003852,120]
[392315423,1761330638473,-500.0,0.0003852,30]
[392315424,1761330638482,-151.0,0.0003852,60]
[392315425,1761330638492,-151.0,0.0003852,30]
[392315426,1761330638501,-500.0,0.0003852,30]
[392315427,1761330638511,-151.0,0.0003852,30]
[392315428,1761330638520,-500.0,0.0003852,30]
[392315429,1761330638529,-151.0,0.0003852,30]
[392315430,1761330638539,-500.0,0.0003852,30]
[392315431,1761330638549,-151.0,0.0003852,30]
[392315432,1761330638559,-500.0,0.0003852,30]
[392315433,1761330638570,-500.0,0.0003852,30]
[392315434,1761330638579,-151.0,0.0003852,120]
[392315435,1761330638589,-500.0,0.0003852,30]
[392315436,1761330638599,-500.0,0.0003852,30]
[392315437,1761330638609,-500.0,0.0003852,30]
[392315438,1761330638619,-547.69,0.0003852,30]
[392315439,1761330638629,-500.0,0.0003852,30]
[392315440,1761330638639,-151.0,0.0003852,120]
[392315441,1761330638649,-500.0,0.0003852,2]
[392315442,1761330638659,-463.40696301,0.0003852,30]
[392315443,1761330638669,-500.0,0.0003852,30]
[392315444,1761330638678,-500.0,0.0003852,30]
[392315445,1761330638688,-500.0,0.0003852,30]
[392315446,1761330638698,-881.24,0.0003852,30]
[392315447,1761330638708,-151.0,0.0003852,120]
[392315448,1761330638718,-151.0,0.0003852,120]
[392315449,1761330638728,-286.067335,0.0003852,120]
[392315450,1761330638737,-151.0,0.0003852,120]
[392315451,1761330638747,-151.0,0.0003852,120]
[392315452,1761330638757,-151.0,0.0003852,120]
[392315453,1761330638767,-200.714542,0.0003852,120]
[392315454,1761330638778,-1380.62,0.0003852,30]
[392315455,1761330638788,-152.617569,0.0003852,120]
[392315456,1761330638798,-298.845404,0.0003852,120]
[392315457,1761330638808,-298.845404,0.0003852,120]
[392315458,1761330638819,-500.0,0.0003852,30]
[392315459,1761330638828,-298.845404,0.0003852,120]
[392315460,1761330638838,-500.0,0.0003852,30]
[392315461,1761330638848,-298.845404,0.0003852,120]
[392315462,1761330638858,-500.0,0.0003852,30]
[392315463,1761330638867,-500.0,0.0003852,30]
[392315464,1761330638877,-500.0,0.0003852,30]
[392315465,1761330638887,-871.66,0.0003852,30]
[392315466,1761330638898,-649.71,0.0003852,30]
[392315467,1761330638907,-500.0,0.0003852,30]
[392315468,1761330638917,-500.0,0.0003852,30]
[392315469,1761330638927,-151.0,0.0003852,120]
[392315470,1761330638937,-500.0,0.0003852,30]
[392315471,1761330638947,-151.0,0.0003852,120]
[392315472,1761330638957,-151.0,0.0003852,120]
[392315473,1761330638967,-500.0,0.0003852,30]
[392315474,1761330638977,-151.0,0.0003852,120]
[392315475,1761330638987,-500.0,0.0003852,30]
[392315476,1761330638997,-500.0,0.0003852,30]
[392315477,1761330639007,-500.0,0.0003852,30]
[392315478,1761330639017,-500.0,0.0003852,30]
[392315479,1761330639026,-500.0,0.0003852,30]
[392315480,1761330639036,-500.0,0.0003852,2]
[392315481,1761330639045,-500.0,0.0003852,30]
[392315482,1761330639055,-500.0,0.0003852,30]
[392315483,1761330639065,-151.0,0.0003852,120]
[392315484,1761330639075,-500.0,0.0003852,30]
[392315485,1761330639085,-500.0,0.0003852,30]
[392315486,1761330639094,-151.0,0.0003852,120]
[392315487,1761330639104,-500.0,0.0003852,30]
[392315488,1761330639118,-500.0,0.0003852,30]
[392315489,1761330639127,-570.12,0.0003852,30]
[392315490,1761330639137,-151.0,0.0003852,120]
[392315491,1761330639147,-500.0,0.0003852,30]
[392315492,1761330639158,-151.0,0.0003852,120]
[392315493,1761330639167,-151.0,0.0003852,120]
[392315494,1761330639176,-500.0,0.0003852,30]
[392315495,1761330639186,-500.0,0.0003852,30]
[392315496,1761330639197,-244.81534549,0.0003852,30]
[392315497,1761330639209,-500.0,0.0003852,30]
[392315498,1761330639219,-102257.92306865,0.0003852,3]
[392315516,1761330643553,-151.0,0.0003702,2]
[392315517,1761330643562,-286.68,0.0003702,2]
[392315518,1761330643572,-47.89823995,0.00038356,30]
[392316620,1761331512829,204.84,0.00013699,2]
[392316623,1761331625141,-204.84,0.00020187,2]
[392316624,1761331625176,-250.45610049,0.00025468,2]
[392316625,1761331625195,-204.84,0.00026676,2]
[392316626,1761331625222,-204.84,0.00033165,2]
[392316627,1761331625232,-45.61610049,0.000341,7]
[392316628,1761331625247,-89.40779902,0.000341,7]
[392316638,1761331831419,-469.94203951,0.00029951,2]
[392316639,1761331831474,-1020.46388477,0.00029951,2]
[392316640,1761331831487,-275.96,0.00029951,2]
[392316641,1761331831586,-3585.55908005,0.00029951,2]
[392316642,1761331831595,-64.97610049,0.000341,7]
[392316643,1761331831605,-200.0,0.000351,7]
[392316644,1761331831615,-333.842,0.000351,41]
[392316645,1761331831624,-150.0,0.00035137,7]
[392316646,1761331831634,-395.8965,0.00036888,7]
[392316647,1761331831642,-600.16473301,0.00036979,15]
[392316648,1761331831652,-601.57672841,0.0003698,2]
[392316649,1761331831663,-302.61183806,0.0003698,2]
[392316650,1761331831688,-557.49214128,0.0003698,2]
[392316774,1761331837469,-373.57020428,0.0003698,2]
[392316775,1761331837522,-259.37957832,0.0003698,2]
[392316776,1761331837534,-5710.91292017,0.0003698,2]
[392316788,1761331839672,-2063.51538964,0.0003698,2]
[392316789,1761331839725,-7192.47792327,0.0003698,2]
[392316790,1761331839735,-251.3,0.0003699,2]
[392316791,1761331839746,-3653.41342634,0.00037,30]
[392316792,1761331839757,-200.0,0.00037015,2]
[392316793,1761331839769,-500.0,0.00037269,30]
[392316794,1761331839779,-500.0,0.00037316,30]
[392316795,1761331839789,-516.6200901,0.00037359,30]
[392316796,1761331839799,-391.47,0.00037404,2]
[392316797,1761331839808,-666.0,0.00037472,3]
[392316798,1761331839818,-150.0,0.00037483,2]
[392316799,1761331839828,-150.0,0.00037483,120]
[392316800,1761331839837,-177.19,0.00037496,120]
[392316801,1761331839847,-500.0,0.00037513,30]
[392316802,1761331839856,-500.0,0.000376,30]
[392316803,1761331839865,-168.0,0.00037674,2]
[392316804,1761331839875,-1527.0,0.00037684,2]
[392316805,1761331839885,-500.0,0.00037842,30]
[392316806,1761331839894,-878.86657509,0.00037904,30]
[392316807,1761331839904,-533.0,0.00037943,2]
[392316808,1761331839914,-518.0,0.00037943,120]
[392316809,1761331839923,-1002.22526006,0.00038,120]
[392316810,1761331839933,-9970.74442771,0.000381,2]
[392316811,1761331839943,-862.40233327,0.00038105,2]
[392316812,1761331839953,-4815.70961,0.0003813,2]
[392316813,1761331839962,-500.0,0.00038305,30]
[392316814,1761331839976,-370.25,0.0003831,2]
[392316815,1761331839986,-821.33844996,0.0003832,10]
[392316816,1761331839995,-157.70404283,0.0003832,15]
[392316817,1761331840007,-11407.21651254,0.0003832,2]
[392316818,1761331840018,-2500.0,0.0003832,2]
[392316819,1761331840028,-3920.91521346,0.0003832,2]
[392316820,1761331840037,-1000.0,0.0003832,2]
[392316821,1761331840050,-321.84600861,0.00038338,2]
[392316822,1761331840059,-725.63,0.00038375,2]
[392316823,1761331840069,-449.3,0.00038375,2]
[392316824,1761331840079,-696.48,0.00038375,2]
[392316825,1761331840089,-696.48,0.00038375,2]
[392316826,1761331840099,-1392.96,0.00038375,2]
[392316827,1761331840108,-696.48,0.00038375,2]
[392316828,1761331840118,-696.48,0.00038375,2]
[392316829,1761331840127,-696.48,0.00038375,2]
[392316830,1761331840137,-176.35,0.00038376,2]
[392316831,1761331840146,-1211.86,0.00038376,2]
[392316832,1761331840155,-844.63,0.00038376,2]
[392316833,1761331840174,-176.35,0.00038376,2]
[392316834,1761331840184,-282.39,0.00038376,2]
[392316835,1761331840193,-300.0,0.00038376,2]
[392316836,1761331840371,-300.0,0.00038376,2]
[392316837,1761331840434,-168.52,0.00038376,2]
[392316838,1761331840444,-176.35,0.00038376,2]
[392316839,1761331840454,-176.35,0.00038376,2]
[392316840,1761331840467,-168.52,0.00038376,2]
[392316841,1761331840477,-168.79,0.00038376,2]
[392316842,1761331840486,-187.51,0.00038376,2]
[392316843,1761331840496,-166.66,0.00038406,2]
[392316844,1761331840507,-160.56398268,0.0003841,11]
[392316845,1761331840517,-75125.254873,0.0003841,3]
[392316846,1761331840527,-15025.0509746,0.0003841,3]
[392316847,1761331840537,-1392.96,0.00038411,2]
[392316848,1761331840547,-1390.71,0.00038411,2]
[392316849,1761331840556,-696.48,0.00038411,2]
[392316850,1761331840566,-696.48,0.00038411,2]
[392316851,1761331840575,-696.48,0.00038411,2]
[392316852,1761331840584,-475.59,0.00038411,2]
[392316853,1761331840594,-696.48,0.00038411,2]
[392316854,1761331840603,-696.48,0.00038411,2]
[392316855,1761331840612,-475.59,0.00038411,2]
[392316856,1761331840622,-475.59,0.00038411,2]
[392316857,1761331840632,-696.48,0.00038411,2]
[392316858,1761331840641,-475.59,0.00038411,2]
[392316859,1761331840651,-696.48,0.00038411,2]
[392316860,1761331840660,-475.59,0.00038411,2]
[392316861,1761331840670,-475.59,0.00038411,2]
[392316862,1761331840679,-500.0,0.00038411,14]
[392316863,1761331840691,-500.0,0.00038411,14]
[392316864,1761331840701,-500.0,0.00038411,2]
[392316865,1761331840710,-151.0,0.00038417,14]
[392316866,1761331840720,-192905.9012,0.0003842,2]
[392316867,1761331840730,-92486.70181536,0.0003842,30]
[392316868,1761331841054,-4451.77200289,0.0003842,30]
[392316871,1761331842565,-9523.99957396,0.0003842,30]
[392316872,1761331842578,-3225.53862842,0.0003842,30]
[392316873,1761331842589,-370.47728752,0.0003842,30]
[392316874,1761331842615,-253.480003,0.0003842,30]
[392316875,1761331843160,-246.18825778,0.00038319,15]
[392316876,1761331843171,-307.68117434,0.0003842,30]
[392316877,1761331843300,-189.03688572,0.0003842,30]
[392316878,1761331845608,-4083.79964855,0.0003842,30]
[392316879,1761332201585,1355.0,0.00023,3]
[392316890,1761333031548,-209.98422928,0.00034666,2]
[392316891,1761333031559,-150.0,0.00035137,7]
[392316892,1761333031568,-166.66,0.00035597,30]
[392316893,1761333031578,-166.66,0.00036347,30]
[392316894,1761333031588,-150.0,0.00036385,2]
[392316895,1761333031597,-509.0,0.00036385,2]
[392316896,1761333031607,-757.57743532,0.000364,2]
[392316897,1761333031808,-1242.42256468,0.000364,2]
[392316898,1761333031819,-152.0,0.00036408,3]
[392316899,1761333031828,-509.0,0.00036953,7]
[392316900,1761333031840,-166.66,0.00037096,30]
[392316901,1761333031850,-1000.0,0.00037311,2]
[392316902,1761333031860,-168.0,0.00037394,2]
[392316903,1761333031870,-763.01403,0.000374,10]
[392316904,1761333031880,-21809.95,0.00037402,2]
[392316905,1761333031890,-1753.57,0.00037402,2]
[392316906,1761333031900,-200.0,0.00037418,2]
[392316907,1761333031910,-893.94,0.00037452,2]
[392316908,1761333031919,-250.0,0.00037483,2]
[392316909,1761333031929,-696.48,0.00037534,2]
[392316910,1761333031939,-539.02847384,0.00037554,30]
[392316911,1761333031949,-166.66,0.00037846,30]
[392316912,1761333031958,-267.073,0.00037846,49]
[392316913,1761333031968,-1000.0,0.0003822,2]